Cogmind - Beta 13 @@@ ROGUE MODE // 2024.04.09 @ 01:57:39 Player: A Moose Result: Destroyed by 2Y-S3L(R) with Subdweller Machine Gun Performance ------------- Evolutions (0) 0 Regions Visited (3) 600 Robots Destroyed (25) 125 Value Destroyed (550) 550 Prototype IDs (5) 100 Alien Tech Used (0) 0 Bonus (0) 0 TOTAL SCORE: 1375 Bonus ------- None Cogmind --------- Core Integrity 0/250 Matter 291/300 Energy 310/315 System Corruption 0% Temperature Cool (0) Movement Walking (120) Location -10/Subcaves Parts ------- > --- POWER (1) -------- Neutrino Core > --- PROPULSION (2) --- Myomer Leg > --- UTILITY (2) ------ Experimental Sensor Array Armor Integrity Analyzer > --- WEAPON (2) ------- Bore Cannon > --- INVENTORY (5) ---- Grenade Launcher Flamer Makeshift Hammer Peak State ------------ > --- POWER ------------ Neutrino Core > --- PROPULSION ------- Myomer Leg > --- UTILITY ---------- Experimental Sensor Array Armor Integrity Analyzer > --- WEAPON ----------- Bore Cannon Flamer > --- INVENTORY -------- Grenade Launcher Makeshift Hammer [Rating: 33] Favorites ----------- Power Ion Engine Engine Ion Engine Power Core Neutrino Core Propulsion Light Treads Treads Light Treads Leg Myomer Leg Utility Signal Interpreter Device Experimental Sensor Array Storage Small Storage Unit Processor Signal Interpreter Protection Scrap Shield Weapon Assault Rifle Energy Gun Medium Laser Energy Cannon Beam Cannon Ballistic Gun Assault Rifle Ballistic Cannon Battle Cannon Launcher Grenade Launcher Special Weapon Flamer Build | -11 -10 -10 -10 ------- Run | Yrd Mat Min Sub Slots Evolved . | . . . . Power . | . . . . Propulsion . | . . . . Utility . | . . . . Weapon . | . . . . Parts Attached 24 | 7 6 3 8 Power 3 | 2 . . 1 Engine 2 | 2 . . . Core 1 | . . . 1 Reactor . | . . . . Propulsion 3 | 2 . . 1 Treads 2 | 2 . . . Leg 1 | . . . 1 Wheel . | . . . . Hover . | . . . . Flight . | . . . . Utility 7 | 1 2 1 3 Device 2 | . . 1 1 Storage 1 | 1 . . . Processor 3 | . 2 . 1 Hackware . | . . . . Protection 1 | . . . 1 Artifact . | . . . . Weapon 11 | 2 4 2 3 Energy Gun 3 | 1 2 . . Energy Cannon 1 | . . 1 . Ballistic Gun 2 | 1 . 1 . Ballistic Cannon 2 | . . . 2 Launcher 2 | . 2 . . Special Weapon 1 | . . . 1 Impact Weapon . | . . . . Slashing Weapon . | . . . . Piercing Weapon . | . . . . Special Melee Weapon . | . . . . Unidentified Prototypes 1 | . . 1 . Parts Lost 8 | . . 3 5 Power 1 | . . 1 . Propulsion 2 | . . . 2 Utility 1 | . . . 1 Weapon 4 | . . 2 2 Highest Loss Streak 4 | . . 2 4 To Critical Strikes . | . . . . Average Slot Usage (%) 89 | . 99 94 74 Engine 7 | . 14 9 . Core 1 | . . . 5 Treads 24 | . 28 28 16 Leg 1 | . . . 4 Device 3 | . . 3 4 Storage 1 | . 5 . . Processor 18 | . 22 24 4 Protection 2 | . . . 8 Energy Gun 8 | . 16 9 . Energy Cannon 4 | . . 9 . Ballistic Gun 9 | . 10 9 8 Ballistic Cannon 4 | . . . 14 Special Weapon 1 | . . . 4 Naked Turns . | . . . . Heaviest Build 26 | 14 14 10 26 Greatest Support 40 | 40 40 40 40 Greatest Overweight (x) 8 | . . . 8 Average Overweight (x) . | . . . . Largest Inventory Capacity 8 | 8 8 5 5 Average Capacity 5 | 7 6 5 5 Most Carried 5 | 5 5 5 5 Average Carried 4 | 2 4 4 4 Final Capacity 8 | 8 5 5 5 Final Carried 5 | 2 5 5 3 Class Distribution -------------------- 89% | Mutant 10% | Scavenger-Mutant Dominant Class ---------------- Mutant | -10/Materials Mutant | -10/Mines Mutant | -10/Subcaves Resources | -11 -10 -10 -10 ----------- Run | Yrd Mat Min Sub Matter Collected 647 | 218 177 57 195 Remotely . | . . . . Salvage Created 446 | . 188 205 53 Parts 40 | . 20 16 4 Haulers Intercepted . | . . . . Recyclers Shooed 1 | . 1 . . Parts Field Recycled . | . . . . Retrieved Matter . | . . . . Parts Self-Destructed 12 | . . . 12 Prevented . | . . . . Kills | -11 -10 -10 -10 ------- Run | Yrd Mat Min Sub Combat Hostiles Destroyed 18 | . 5 10 3 Guns 8 | . 2 6 . Cannons 5 | . . 2 3 AOE 5 | . 3 2 . Classes Destroyed 6 | . 4 1 1 Worker 3 | . 2 1 . Tunneler 1 | . . 1 . Watcher 3 | . 3 . . Swarmer 11 | . 3 8 . Grunt 4 | . 2 2 . Subdweller 3 | . . . 3 Best Kill Streak 5 | . 5 4 2 Combat Bots Only 3 | . 3 3 2 Max Kills in Single Turn 2 | . 2 2 1 Gunslinging . | . . . . Exploded 1 | . 1 1 . Melee . | . . . . Uniques/NPCs Destroyed . | . . . . Combat | -11 -10 -10 -10 -------- Run | Yrd Mat Min Sub Hostile Shots Fired 112 | . 24 44 44 Missed 33 | . 9 8 16 Damage Taken 1323 | . 157 521 645 Core 260 | . 33 165 62 Absorbed by Shields . | . . . . Core Remaining (%) 100 | 100 . . . Volleys Fired 59 | . 26 18 15 Largest 2 | . 2 2 2 Hottest 96 | . 90 90 96 Shots Fired 113 | . 51 36 26 Gun 81 | . 49 26 6 Cannon 30 | . . 10 20 Launcher 2 | . 2 . . Special . | . . . . Kinetic 51 | . 15 10 26 Thermal 32 | . 14 18 . Explosive 2 | . 2 . . Electromagnetic 28 | . 20 8 . Robot Hit Streak 10 | . 7 4 10 Robot Miss Streak 7 | . 7 2 2 Penetration Max . | . . . . Secondary Targets 1 | . . 1 . Max Gunslinging Chain 1 | . . 1 . Shots Hit Robots 70 | . 29 22 19 Core Hits 33 | . 14 14 5 Critical Kills . | . . . . Critical Parts Destroyed . | . . . . Critical Strikes 1 | . . . 1 Destroy 1 | . . . 1 Melee Attacks . | . . . . Impact . | . . . . Slashing . | . . . . Piercing . | . . . . Sneak Attacks . | . . . . Combat Hostiles . | . . . . Follow-up Attacks . | . . . . Damage Inflicted 1629 | . 640 592 397 Guns 632 | . 386 188 58 Cannons 460 | . . 121 339 Explosions 518 | . 254 264 . Melee . | . . . . Ramming 19 | . . 19 . Kinetic 557 | . 92 68 397 Thermal 666 | . 231 435 . Explosive 149 | . 149 . . Electromagnetic 238 | . 168 70 . Impact . | . . . . Slashing . | . . . . Piercing . | . . . . Highest Corruption . | . . . . Average Corruption . | . . . . Corruption Purged . | . . . . Corruption Blocked . | . . . . Overload Shots . | . . . . Overflow Damage 74 | . . 74 . Projectiles . | . . . . Explosions 74 | . . 74 . Melee . | . . . . Knockbacks 3 | . . . 3 Impact . | . . . . Kinetic 3 | . . . 3 Secondary . | . . . . Self-Inflicted Damage 190 | . . 190 . Shots 5 | . . 5 . Rammed 6 | . . 6 . Targets Rammed 6 | . . 6 . Kicked . | . . . . Crushed . | . . . . Highest Temperature 205 | . 202 205 10 Average Temperature 57 | . 54 65 4 Received Heat Transfer 294 | . 36 75 183 Siege Activations . | . . . . Robots Corrupted . | . . . . Combat Hostiles . | . . . . Parts Fried . | . . . . Impact Corruptions . | . . . . Robots Melted . | . . . . Combat Hostiles . | . . . . Parts Melted 1 | . . 1 . Heat Transferred 1177 | . 470 707 . Parts Sabotaged . | . . . . Parts Stolen . | . . . . Parts Stripped . | . . . . Power Chain Reactions 3 | . 1 2 . Alert | -11 -10 -10 -10 ------- Run | Yrd Mat Min Sub Peak Influence 299 | . 119 299 . Initial 41 | . . 41 . Average 95 | . 41 125 . Maximum Alert Level 1 | . . 1 . Low Security (%) 99 | 100 100 99 . Level 1 . | . . . . Level 2 . | . . . . Level 3 . | . . . . Level 4 . | . . . . Level 5 . | . . . . High Security . | . . . . Max Security . | . . . . Squads Dispatched 2 | . 2 . . Investigation 1 | . 1 . . Extermination . | . . . . Reinforcement 1 | . 1 . . Assault . | . . . . Garrison . | . . . . Intercept . | . . . . Searches Triggered . | . . . . Construction Impeded . | . . . . Haulers Reinforced . | . . . . Active Scanning Responses . | . . . . Cargo Convoy Interrupts . | . . . . Stealth | -11 -10 -10 -10 --------- Run | Yrd Mat Min Sub Distress Signals . | . . . . Communications Jammed . | . . . . Distress Signals . | . . . . Times Spotted 25 | . 10 11 4 Peak Tracking Total 4 | . 4 3 2 Tactical Retreats 1 | . . 1 . Traps | -11 -10 -10 -10 ------- Run | Yrd Mat Min Sub Traps Triggered 1 | . 1 . . Indirectly . | . . . . Trap Hack Attempts . | . . . . Triggered . | . . . . Disarmed . | . . . . Reprogrammed . | . . . . Reused . | . . . . Traps Extracted . | . . . . Installed . | . . . . Triggered . | . . . . Machines | -11 -10 -10 -10 ---------- Run | Yrd Mat Min Sub Machines Disabled 10 | . . 10 . Max in Single Turn 8 | . . 8 . Machines Repaired . | . . . . Machines Dismantled . | . . . . Machines Sabotaged . | . . . . Overloaded Fab Kills . | . . . . Hacking | -11 -10 -10 -10 --------- Run | Yrd Mat Min Sub Machines Accessed 3 | . 3 . . Terminals 3 | . 3 . . Fabricators . | . . . . Repair Stations . | . . . . Recycling Units . | . . . . Scanalyzers . | . . . . Garrison Access . | . . . . Total Hacks 6 | . 6 . . Successful 5 | . 5 . . Failed 1 | . 1 . . Catastrophic . | . . . . Database Lockouts . | . . . . Manual . | . . . . Terminals 6 | . 6 . . Fabricators . | . . . . Repair Stations . | . . . . Recycling Units . | . . . . Scanalyzers . | . . . . Garrison Access . | . . . . Terminal Hacks 5 | . 5 . . Record 1 | . 1 . . Prototype ID Bank 2 | . 2 . . Emergency Access Points 1 | . 1 . . Alert Level 1 | . 1 . . Fabricator Hacks . | . . . . Repair Station Hacks . | . . . . Recycling Unit Hacks . | . . . . Scanalyzer . | . . . . Garrison Access Hacks . | . . . . Unauthorized Hacks . | . . . . Terminals . | . . . . Fabricators . | . . . . Repair Stations . | . . . . Recycling Units . | . . . . Scanalyzers . | . . . . Garrison Access . | . . . . Data Cores Recovered . | . . . . Used . | . . . . Hacking Detections 2 | . 2 . . Full Trace Events . | . . . . Feedback Events . | . . . . Feedback Blocked . | . . . . Robot Schematics Acquired . | . . . . Robots Built . | . . . . Authchips . | . . . . Time . | . . . . Total Robot Build Rating . | . . . . Part Schematics Acquired . | . . . . Parts Built . | . . . . Authchips . | . . . . Time . | . . . . Total Part Build Rating . | . . . . Parts Repaired . | . . . . Time . | . . . . Parts Recycled . | . . . . Recycled Matter . | . . . . Retrieved Matter . | . . . . Retrieved Components . | . . . . Parts Scanalyzed . | . . . . Part Schematics Acquired . | . . . . Parts Damaged . | . . . . Bothacking | -11 -10 -10 -10 ------------ Run | Yrd Mat Min Sub Used RIF Installer . | . . . . Robots Hacked . | . . . . Non-combat . | . . . . Combat . | . . . . Robot Hacks Applied . | . . . . Relay Couplers Released . | . . . . Fabnet Peak Effective % . | . . . . Robots Rewired . | . . . . Allies Hacked . | . . . . Hacks Repelled . | . . . . Allies | -11 -10 -10 -10 -------- Run | Yrd Mat Min Sub Total Allies . | . . . . Largest Group . | . . . . Highest-Rated Group . | . . . . Highest-Rated Ally . | . . . . Total Orders . | . . . . Ally Attacks . | . . . . Total Damage . | . . . . Kills . | . . . . Allies Corrupted . | . . . . Allies Melted . | . . . . Intel | -11 -10 -10 -10 ------- Run | Yrd Mat Min Sub Robot Analysis Total . | . . . . Derelict Logs Recovered 2 | . . 2 . Drone Launches . | . . . . Drone Recoveries . | . . . . Exploration | -11 -10 -10 -10 ------------- Run | Yrd Mat Min Sub Turns Passed 2506 | 72 529 1197 708 Spaces Moved 1377 | 40 273 688 376 Core 8 | 6 . . 2 Treads 1239 | 34 273 688 244 Legs 130 | . . . 130 Wheels . | . . . . Hover . | . . . . Flight . | . . . . Fastest Speed 50 | 50 160 160 120 Average Speed 162 | 143 160 160 170 Slowest Speed 450 | 160 160 160 450 Overloaded Moves . | . . . . Propulsion Burnouts . | . . . . Robots Hopped . | . . . . Cave-ins Triggered . | . . . . Exploration Rate (%) 46 | 4 51 97 35 Regions Visited 3 Branch Regions 2 Pre-discovered Areas 3 | . . 2 1 Known Exits Taken 2 | . 1 1 . Unknown Exits Taken 1 | 1 . . . Scrap Searched 2 | . . 1 1 Spaces Dug . | . . . . Terrain Destroyed 45 | . 16 29 . Melee . | . . . . Projectile . | . . . . AOE 45 | . 16 29 . Terrain Rammed . | . . . . Walls Destroyed . | . . . . Machines Disabled . | . . . . Actions | -11 -10 -10 -10 --------- Run | Yrd Mat Min Sub Total 1531 | 54 312 745 420 Wait 35 | . 2 28 5 Move 1374 | 39 272 687 376 Hop . | . . . . Pick Up 22 | 8 5 2 7 Fast Attach 5 | . . 1 4 Attach 12 | 6 1 2 3 Detach . | . . . . Swap 7 | 1 5 . 1 Drop 11 | . 1 1 9 Fire 59 | . 26 18 15 Melee . | . . . . Ram . | . . . . Kick . | . . . . Crush 6 | . . 6 . Escape Stasis . | . . . . Rewire . | . . . . Trap . | . . . . Miscellaneous . | . . . . Route ------- -11/Scrapyard -10/Materials (discovered 2 exits: *Mat / *Min) -10/Mines (discovered 3 exits: *Mat x2 / *Sub) -10/Subcaves History --------- Turn | Location | Event 16 | -11/Scrapyard | Discovered new exit (range 16) 73 | -11/Scrapyard | Entered Materials 223 | -10/Materials | Discovered new exit (range 17) 286 | -10/Materials | Identified exit to Materials 309 | -10/Materials | Build established: Mutant 565 | -10/Materials | Discovered new exit (range 18) 590 | -10/Materials | Identified exit to Mines 602 | -10/Materials | Entered Mines 603 | -10/Mines | Learned location of Storage (-9) 609 | -10/Mines | Met a Derelict bent on vengeance 824 | -10/Mines | Learned Materials trap positions 931 | -10/Mines | Found a hidden stash of uninstalled traps 992 | -10/Mines | Core integrity fell below 50% 1209 | -10/Mines | Discovered exit to Materials (range 8) 1512 | -10/Mines | Found a damaged Exp. Sensor Array with a note attached 1515 | -10/Mines | Found Prototype Device 1516 | -10/Mines | Identified Exp. Sensor Array 1548 | -10/Mines | A weapon hastily lodged in a ceiling crevice suddenly fell to the ground 1681 | -10/Mines | Discovered exit to Materials (range 5) 1791 | -10/Mines | Discovered new exit (range 6) 1798 | -10/Mines | Identified exit to Subcaves 1799 | -10/Mines | Entered Subcaves 1928 | -10/Subcaves | Learned location of Zion (-6) 1928 | -10/Subcaves | Met a Zionite searching for "candidates" 2217 | -10/Subcaves | Core integrity fell below 20% 2263 | -10/Subcaves | Lost 4 parts (2n1u1w) 2507 | -10/Subcaves | Destroyed by 2Y-S3L(R) with Subdweller Machine Gun Last Messages --------------- Acquired Myomer Leg. Dropped Battle Cannon. Acquired Armor Integrity Analyzer. Dropped Scrap Shield Fragment. Acquired 22 matter. Acquired 8 matter. Acquired 1 matter. Acquired 9 matter. Subatomizers dissect the Phase Shifter. Acquired Flamer. Acquired 5 matter. Acquired 4 matter. Subatomizers dissect the Phase Shifter. Acquired 10 matter. HV Slug penetrates 7W-NRB(R). 7W-NRB(R) destroyed. Acquired 31 matter. Acquired 6 matter. Subatomizers dissect the Sub. Optics. Flamer destroyed. Map ----- +----------------------------------------------------+ | | | | | | | | | | | ?????????????????????????????????????????????????? | | ?????????????????????????????????????????????????? | | ?????????????????????????????????????????????????? | | ?????????????????????????????????????????????????? | | ?????????????????????????????????????????????????? | | ?????????????????????????????????????????????????? | | ?????????????????????????????????????????????????? | | ?????????????????????????????????????????????????? | | ?????????????????????????????????????????????????? | | ?????????????????????????????????????????????????? | | ?????????????????????????????????????????????????? | | ?????????????????????????????????????????????????? | | ?????????????????????????????????????????????????? | | ?????????????????????????????????????????????????? | | ???????????????????###?????????##????????????????? | | ??????????????????## ######### #????????????????? | | ??????????????????# ## #????????????????? | | ??????????????????# ## #?????????????????? | | ??????????????????## ## ##????????????????? | | ???????????????????# ## ###??????????????? | | ???????????????????## @ ##?????????????? | | ????????????????????## #?????????????? | | ?????????????????????## ##?????????????? | | ??????????????????????# ### ###????????????? | | ??????????????????????###?# #?##?????????? | | ??????????????????????????# ## ##????????? | | ?????????????????????????## ##???????? | | ????????????????????????## #???????? | | ????????????????????????# #???????? | | ????????????????????????# ##???????? | | ????????????????????###?##! ######???####? | | ????????????????????# ##?# & R #####"#### ## | | ????????????????????# ###& ##""""##" # | | ????????????#######?# ## ###""""##" | | ???????????## ### ## ## ""###" | | ???????????# ### " "##"" | | ???????????# ! ] # #?# " ## !] "# | | ????????#### ## " """] ## | | ????????# ## # ### " " &!& #? | | ????????# #### ## ##?### " " & !# ## | | ????????## #?# " ## #????### "### | | ?????##### ## ## ## #??????# ###?# | | ????## #####?" #?????# ##???## | | ????# % #????"""" ##????# ##?????## | | ##??# ## ## #?????" ????# #???????# | +----------------------------------------------------+ Best States ------------- Heat Dissipation 25 Energy Generation 19 Energy Capacity 315 Matter Stores 300 Matter Capacity 300 Sight Range 18 Robot Scan Range 20 Terrain Scan Density 10 Armor Coverage 800 Evasion (%) 50 Armor Integrity Analysis 30 Recoil Reduction 2 Item Schematics ----------------- None Robot Schematics ------------------ None Fabricated ------------ Nothing Alien Tech Used ----------------- None Achievements -------------- None Challenges ------------ None Game ------ Seed ReinforcedChainAutohacker Manual? 0 Play Time 00:19:08 Cumulative 21.7 hours Start 2024.04.09 @ 01:43:16 End 2024.04.09 @ 01:57:39 Sessions 1 Manual Loads 0 Difficulty Rogue Special Mode None Game No. 27 Rogue 18 Adventurer 9 Explorer 0 Win Type - Total 0 Types 0/0/0/0/0/0/0/0/0 Lore% 19 Gallery% 32 Achievement% 26 Wizard Run 0 Options --------- Layout 1 ASCII 0 Keyboard 0 Movement Numpad Keybinds 0 Fullscreen 1 Font 24/Smallcaps Map View 50x35 Zoom Use 0% Tactical HUD 0 Map Filters NONE Filters NONE Steam 1 RUN: fa334757-6208-4d4c-bd64-c40908b7a27d